[Event "EYCC Open-U10 2019"]
[Site "Bratislava"]
[Date "2019.08.07"]
[Round "6.3"]
[White "Materia, Marco"]
[Black "Warchol, Kamil"]
[Result "1/2-1/2"]
[ECO "D27"]
[WhiteElo "2243"]
[BlackElo "1573"]
[Annotator "NA"]
[PlyCount "118"]
[EventDate "2019.08.02"]
[EventType "swiss"]
[EventCountry "SVK"]
[SourceTitle "playchess.com"]
[Source "ChessBase"]
[SourceQuality "1"]
[TimeControl "40/5400+30:1800+30"]

1. d4 {[%emt 0:00:00]} d5 {[%emt 0:00:00]} 2. c4 {[%emt 0:00:00]} dxc4 {[%emt 0:00:18]} 3. e3 {[%emt 0:00:00]} Nf6 {[%emt 0:00:48]} 4. Bxc4 {[%emt 0:00:06]} e6 {[%emt 0:00:33]} 5. Nf3 {[%emt 0:00:31]} c5 {[%emt 0:01:09]} 6. O-O {[%emt 0:00:34]} a6 {[%emt 0:01:14]} 7. a4 {[%emt 0:00:08]} Nc6 {[%emt 0:01:09]} 8. Qe2 {[%emt 0:00:09]} cxd4 {[%emt 0:01:19]} 9. Rd1 {[%emt 0:00:06]} Be7 {[%emt 0:01:36]} 10. exd4 {[%emt 0:03:23]} O-O {[%emt 0:02:20]} 11. Nc3 {[%emt 0:00:36]} Nb4 {[%emt 0:00:59]} 12. Ne5 {[%emt 0:04:40]} Bd7 {[%emt 0:01:13]} 13. d5 {[%emt 0:05:51]} exd5 {[%emt 0:00:35]} 14. Nxd5 {[%emt 0:01:27]} Nbxd5 {[%emt 0:00:40]} 15. Bxd5 {[%emt 0:00:10]} Nxd5 {[%emt 0:00:09]} 16. Rxd5 {[%emt 0:01:03]} Bg4 {[%emt 0:00:06]} 17. Qc4 {[%emt 0:05:10]} Qxd5 {[%emt 0:02:22]} 18. Qxd5 {[%emt 0:00:05]} Rad8 {[%emt 0:00:06]} 19. Qb3 {[%emt 0:16:11]} Rd1+ {[%emt 0:01:12]} 20. Qxd1 {[%emt 0:00:04]} Bxd1 {[%emt 0:00:04]} 21. Bg5 {[%emt 0:01:31]} Bxg5 {[%emt 0:00:22]} 22. Rxd1 {[%emt 0:00:01]} Rc8 {[%emt 0:06:02]} 23. g3 {[%emt 0:03:27]} Bf6 {[%emt 0:05:00]} 24. Nd3 {[%emt 0:03:39]} Kf8 {[%emt 0:09:03]} 25. b3 {[%emt 0:02:26]} Rc3 {[%emt 0:05:56]} 26. b4 {[%emt 0:01:46]} Be7 27. Nf4 {[%emt 0:03:45]} Rc4 {[%emt 0:09:05]} 28. Nd5 {[%emt 0:02:38]} Bxb4 {[%emt 0:08:29]} 29. Nb6 {[%emt 0:02:02]} Rc6 {[%emt 0:03:38]} 30. Rd8+ {[%emt 0:03:33]} Ke7 {[%emt 0:00:21]} 31. Rd7+ {[%emt 0:00:06]} Ke8 {[%emt 0:09:55]} 32. Rxb7 {[%emt 0:01:15]} Rc1+ {[%emt 0:01:19]} 33. Kg2 {[%emt 0:00:04]} Bc5 {[%emt 0:01:23]} 34. Rb8+ {[%emt 0:05:44]} Ke7 {[%emt 0:00:44]} 35. Nd5+ {[%emt 0:00:30]} Kd7 {[%emt 0:01:53]} 36. Nf4 {[%emt 0:04:34]} Bd6 {[%emt 0:06:33]} 37. Rb6 {[%emt 0:03:44]} Bxf4 {[%emt 0:05:20]} 38. gxf4 {[%emt 0:00:07]} Rc6 {[%emt 0:00:04]} 39. Rb7+ {[%emt 0:00:56]} Ke6 {[%emt 0:00:34]} 40. Ra7 {[%emt 0:00:00]} g6 {[%emt 0:00:00]} 41. Kg3 {[%emt 0:01:07]} h5 {[%emt 0:02:43]} 42. Kf3 {[%emt 0:02:08]} f6 {[%emt 0:05:24]} 43. Kg3 {[%emt 0:00:55]} Kf5 {[%emt 0:02:54]} 44. h4 {[%emt 0:00:14]} Rc3+ {[%emt 0:01:05]} 45. Kg2 {[%emt 0:18:06]} Rc6 {[%emt 0:07:33]} 46. Kf3 {[%emt 0:01:32]} g5 {[%emt 0:14:29]} 47. fxg5 {[%emt 0:00:31]} fxg5 {[%emt 0:01:41]} 48. hxg5 {[%emt 0:02:23]} Kxg5 {[%emt 0:03:57]} 49. Kg3 {[%emt 0:01:55]} Rc3+ {[%emt 0:00:45]} 50. Kg2 {[%emt 0:00:12]} Rc6 {[%emt 0:00:32]} 51. Kg3 {[%emt 0:00:05]} Rg6 {[%emt 0:03:28]} 52. a5 {[%emt 0:01:45]} Rc6 {[%emt 0:00:50]} 53. Ra8 {[%emt 0:00:19]} Rf6 {[%emt 0:01:21]} 54. Rg8+ {[%emt 0:00:48]} Rg6 {[%emt 0:02:07]} 55. f4+ {[%emt 0:00:27]} Kf5+ {[%emt 0:00:13]} 56. Rxg6 {[%emt 0:00:05]} Kxg6 {[%emt 0:00:03]} 57. Kh4 {[%emt 0:00:09]} Kf5 {[%emt 0:00:20]} 58. Kxh5 {[%emt 0:00:01]} Kxf4 {[%emt 0:00:01]} 59. Kh4 {[%emt 0:00:13]} Ke5 1/2-1/2

[Event "EYCC Open-U10 2019"]
[Site "Bratislava"]
[Date "2019.08.07"]
[Round "6.4"]
[White "Ermitsch, Magnus"]
[Black "Usov, Aleksandr E."]
[Result "0-1"]
[ECO "B10"]
[WhiteElo "1750"]
[BlackElo "1809"]
[Annotator "NA"]
[PlyCount "60"]
[EventDate "2019.08.02"]
[EventType "swiss"]
[EventCountry "SVK"]
[SourceTitle "playchess.com"]
[Source "ChessBase"]
[SourceQuality "1"]
[TimeControl "40/5400+30:1800+30"]

1. e4 {[%emt 0:00:00]} c6 {[%emt 0:00:00]} 2. Nc3 {[%emt 0:00:55]} d5 {[%emt 0:00:00]} 3. Nf3 {[%emt 0:00:49]} dxe4 {[%emt 0:00:20]} 4. Nxe4 {[%emt 0:01:17]} Nf6 {[%emt 0:00:48]} 5. Qe2 {[%emt 0:00:56]} Nxe4 {[%emt 0:00:14]} 6. Qxe4 {[%emt 0:00:53]} Qd5 {[%emt 0:00:42]} 7. Qf4 {[%emt 0:01:10]} Qe6+ {[%emt 0:02:11]} 8. Be2 {[%emt 0:06:14]} Qd6 {[%emt 0:13:20]} 9. Qe3 {[%emt 0:04:31]} Bf5 {[%emt 0:01:27]} 10. O-O {[%emt 0:14:46]} e6 {[%emt 0:01:22]} 11. Nd4 {[%emt 0:06:32]} Bg6 {[%emt 0:00:46]} 12. b3 {[%emt 0:06:29]} Nd7 {[%emt 0:04:24]} 13. Bb2 {[%emt 0:02:22]} Be7 {[%emt 0:03:38]} 14. f4 {[%emt 0:11:32]} O-O-O {[%emt 0:03:17]} 15. a4 {[%emt 0:03:27]} Qc7 16. b4 {[%emt 0:09:15]} Bxb4 {[%emt 0:03:33]} 17. Rfb1 {[%emt 0:07:21]} Nf6 {[%emt 0:03:57]} 18. Nf3 {[%emt 0:13:15]} Qe7 {[%emt 0:08:25]} 19. Ba3 {[%emt 0:02:35]} Bxa3 {[%emt 0:06:12]} 20. Rxa3 {[%emt 0:00:14]} c5 {[%emt 0:05:46]} 21. Ne5 {[%emt 0:04:20]} Nd5 {[%emt 0:06:56]} 22. Qb3 {[%emt 0:01:32]} Nb4 {[%emt 0:00:33]} 23. Rb2 {[%emt 0:00:27]} Rxd2 {[%emt 0:00:24]} 24. Qc4 {[%emt 0:00:27]} Rd4 {[%emt 0:01:39]} 25. Qc3 {[%emt 0:00:39]} Rhd8 {[%emt 0:00:42]} 26. Rab3 {[%emt 0:00:11]} Qc7 {[%emt 0:01:11]} 27. Nd3 {[%emt 0:00:50]} Bxd3 {[%emt 0:00:59]} 28. cxd3 {[%emt 0:00:06]} Rxf4 {[%emt 0:00:38]} 29. g3 {[%emt 0:00:51]} Rfd4 {[%emt 0:00:12]} 30. Kg2 {[%emt 0:00:21]} f5 0-1

[Event "EYCC Open-U10 2019"]
[Site "Bratislava"]
[Date "2019.08.07"]
[Round "6.5"]
[White "Giang, Tran Nam"]
[Black "Golovchenko, Bogdan"]
[Result "0-1"]
[ECO "B92"]
[WhiteElo "1931"]
[BlackElo "1723"]
[Annotator "NA"]
[PlyCount "110"]
[EventDate "2019.08.02"]
[EventType "swiss"]
[EventCountry "SVK"]
[SourceTitle "playchess.com"]
[Source "ChessBase"]
[SourceQuality "1"]
[TimeControl "40/5400+30:1800+30"]

1. e4 {[%emt 0:00:00]} c5 {[%emt 0:00:00]} 2. Nf3 {[%emt 0:00:05]} d6 {[%emt 0:00:09]} 3. d4 {[%emt 0:00:24]} cxd4 {[%emt 0:00:08]} 4. Nxd4 {[%emt 0:00:29]} Nf6 {[%emt 0:00:11]} 5. Nc3 {[%emt 0:00:26]} a6 {[%emt 0:00:15]} 6. Be2 {[%emt 0:04:21]} g6 {[%emt 0:01:35]} 7. Be3 {[%emt 0:05:28]} Bg7 {[%emt 0:00:45]} 8. O-O {[%emt 0:03:11]} O-O {[%emt 0:00:27]} 9. f4 {[%emt 0:01:16]} Nc6 {[%emt 0:01:02]} 10. Kh1 {[%emt 0:08:03]} Bd7 {[%emt 0:01:08]} 11. Qd2 {[%emt 0:06:41]} b5 {[%emt 0:02:59]} 12. Bf3 {[%emt 0:05:22]} Rc8 {[%emt 0:01:39]} 13. Nxc6 {[%emt 0:09:51]} Bxc6 {[%emt 0:00:10]} 14. g4 {[%emt 0:00:16]} b4 {[%emt 0:01:35]} 15. Nd5 {[%emt 0:01:03]} Nxd5 {[%emt 0:00:07]} 16. exd5 {[%emt 0:00:09]} Bb5 {[%emt 0:00:07]} 17. Rf2 {[%emt 0:01:58]} Bxb2 {[%emt 0:00:47]} 18. Rg1 {[%emt 0:00:26]} Bc3 {[%emt 0:01:02]} 19. Qd1 {[%emt 0:01:59]} Qa5 {[%emt 0:02:52]} 20. Be4 {[%emt 0:10:14]} Qxa2 {[%emt 0:01:06]} 21. Qf3 {[%emt 0:02:55]} a5 {[%emt 0:01:47]} 22. f5 {[%emt 0:06:57]} Qa3 {[%emt 0:17:47]} 23. Bc1 {[%emt 0:06:24]} Bb2 {[%emt 0:00:20]} 24. Bxb2 {[%emt 0:00:14]} Qxb2 {[%emt 0:00:05]} 25. c4 {[%emt 0:00:25]} Qe5 {[%emt 0:03:05]} 26. cxb5 {[%emt 0:01:24]} Rc3 {[%emt 0:00:09]} 27. Qf4 {[%emt 0:02:06]} Qxf4 {[%emt 0:00:13]} 28. Rxf4 {[%emt 0:00:23]} g5 {[%emt 0:00:07]} 29. Rf3 {[%emt 0:01:22]} Rc5 {[%emt 0:06:26]} 30. Bd3 {[%emt 0:05:12]} Rxd5 {[%emt 0:00:56]} 31. Ra1 {[%emt 0:00:34]} b3 {[%emt 0:00:59]} 32. Bc4 {[%emt 0:03:56]} b2 {[%emt 0:00:06]} 33. Rb1 {[%emt 0:01:01]} Rc5 {[%emt 0:00:13]} 34. Bd3 {[%emt 0:01:20]} Rc1+ {[%emt 0:07:48]} 35. Kg2 {[%emt 0:00:16]} Rxb1 {[%emt 0:00:13]} 36. Bxb1 {[%emt 0:00:01]} a4 {[%emt 0:00:15]} 37. Ra3 {[%emt 0:01:46]} Rb8 {[%emt 0:00:25]} 38. Rxa4 {[%emt 0:01:16]} Rxb5 {[%emt 0:00:05]} 39. Re4 {[%emt 0:02:35]} Kf8 {[%emt 0:00:43]} 40. Kf2 {[%emt 0:00:00]} d5 {[%emt 0:00:00]} 41. Rd4 {[%emt 0:03:54]} e5 {[%emt 0:03:43]} 42. fxe6 {[%emt 0:00:21]} fxe6 {[%emt 0:00:05]} 43. Ke2 {[%emt 0:01:20]} e5 {[%emt 0:01:00]} 44. Rd2 {[%emt 0:00:34]} e4 {[%emt 0:02:30]} 45. Ke3 {[%emt 0:00:59]} Ke7 {[%emt 0:00:49]} 46. Kd4 {[%emt 0:01:32]} Kd6 {[%emt 0:01:09]} 47. Kc3 {[%emt 0:02:27]} Ke5 {[%emt 0:00:40]} 48. Rxb2 {[%emt 0:04:09]} Rxb2 {[%emt 0:00:50]} 49. Kxb2 {[%emt 0:00:01]} d4 {[%emt 0:00:10]} 50. Kc2 {[%emt 0:00:31]} Kf4 {[%emt 0:00:49]} 51. Kd1 {[%emt 0:02:44]} d3 {[%emt 0:00:30]} 52. Kd2 {[%emt 0:02:14]} Kf3 {[%emt 0:00:15]} 53. h3 {[%emt 0:01:24]} Kf2 {[%emt 0:00:14]} 54. Kd1 {[%emt 0:00:55]} h6 {[%emt 0:01:23]} 55. Kc1 {[%emt 0:02:07]} Ke1 {[%emt 0:00:18]} 0-1

[Event "EYCC Open-U10 2019"]
[Site "Bratislava"]
[Date "2019.08.07"]
[Round "6.6"]
[White "Navoyan, Gagik"]
[Black "Zverev, Lev"]
[Result "1/2-1/2"]
[ECO "D30"]
[WhiteElo "1670"]
[BlackElo "1849"]
[Annotator "NA"]
[PlyCount "134"]
[EventDate "2019.08.02"]
[EventType "swiss"]
[EventCountry "SVK"]
[SourceTitle "playchess.com"]
[Source "ChessBase"]
[SourceQuality "1"]
[TimeControl "40/5400+30:1800+30"]

1. d4 {[%emt 0:00:00]} d5 {[%emt 0:00:00]} 2. c4 {[%emt 0:00:00]} e6 {[%emt 0:00:03]} 3. Nf3 {[%emt 0:00:00]} c6 {[%emt 0:01:27]} 4. Qc2 {[%emt 0:00:05]} Nf6 {[%emt 0:00:21]} 5. g3 {[%emt 0:00:06]} Be7 {[%emt 0:01:07]} 6. Bg2 {[%emt 0:00:08]} O-O {[%emt 0:00:08]} 7. O-O {[%emt 0:00:00]} b6 {[%emt 0:00:15]} 8. Nbd2 {[%emt 0:00:05]} Bb7 {[%emt 0:00:10]} 9. e4 {[%emt 0:00:11]} Na6 {[%emt 0:00:09]} 10. a3 {[%emt 0:03:16]} c5 {[%emt 0:01:36]} 11. exd5 {[%emt 0:02:02]} exd5 {[%emt 0:00:07]} 12. Rd1 {[%emt 0:06:04]} Qc8 {[%emt 0:04:32]} 13. b3 {[%emt 0:01:21]} Nc7 {[%emt 0:03:01]} 14. Bb2 {[%emt 0:00:41]} Ne6 {[%emt 0:01:51]} 15. Rac1 {[%emt 0:07:29]} cxd4 {[%emt 0:00:25]} 16. Nxd4 {[%emt 0:00:04]} Nxd4 {[%emt 0:00:13]} 17. Bxd4 {[%emt 0:00:22]} Bxa3 {[%emt 0:00:06]} 18. Rb1 {[%emt 0:07:30]} Be7 {[%emt 0:01:34]} 19. Re1 {[%emt 0:02:00]} Qc7 {[%emt 0:00:15]} 20. Be5 {[%emt 0:00:47]} Qd7 {[%emt 0:00:09]} 21. Rbd1 {[%emt 0:02:45]} Qc8 {[%emt 0:00:25]} 22. Ba1 {[%emt 0:01:04]} Re8 {[%emt 0:02:16]} 23. Bxf6 {[%emt 0:02:04]} gxf6 {[%emt 0:00:15]} 24. h4 {[%emt 0:11:01]} Qc7 {[%emt 0:02:41]} 25. Qf5 {[%emt 0:08:49]} Bc5 {[%emt 0:19:15]} 26. cxd5 {[%emt 0:10:15]} Rxe1+ {[%emt 0:03:33]} 27. Rxe1 {[%emt 0:00:16]} Qxg3 {[%emt 0:00:25]} 28. Ne4 {[%emt 0:00:28]} Qg7 {[%emt 0:00:19]} 29. Nxf6+ {[%emt 0:00:53]} Kh8 {[%emt 0:00:08]} 30. Nh5 {[%emt 0:05:44]} Qc3 {[%emt 0:02:48]} 31. Re5 {[%emt 0:08:08]} Qc1+ {[%emt 0:01:08]} 32. Kh2 {[%emt 0:00:27]} Qh6 {[%emt 0:00:07]} 33. Re4 {[%emt 0:06:40]} Bd6+ {[%emt 0:00:12]} 34. f4 {[%emt 0:01:29]} Rf8 {[%emt 0:12:18]} 35. Qf6+ {[%emt 0:04:34]} Qxf6 {[%emt 0:00:12]} 36. Nxf6 {[%emt 0:00:02]} Rd8 {[%emt 0:00:09]} 37. Kg3 {[%emt 0:01:25]} Kg7 {[%emt 0:06:57]} 38. Re8 {[%emt 0:03:39]} Bc7 {[%emt 0:00:10]} 39. Rxd8 {[%emt 0:00:09]} Bxd8 {[%emt 0:00:08]} 40. Ne8+ {[%emt 0:00:00]} Kf8 {[%emt 0:00:00]} 41. Nd6 {[%emt 0:00:39]} Ba6 {[%emt 0:00:26]} 42. Be4 {[%emt 0:00:27]} h6 {[%emt 0:00:37]} 43. Nf5 {[%emt 0:00:22]} h5 {[%emt 0:00:17]} 44. Nd4 {[%emt 0:02:18]} Bb7 {[%emt 0:00:35]} 45. Nc6 {[%emt 0:00:58]} Bxc6 {[%emt 0:00:10]} 46. dxc6 {[%emt 0:00:03]} Kg7 {[%emt 0:00:16]} 47. Bf3 {[%emt 0:00:39]} Kg6 {[%emt 0:00:15]} 48. Be2 {[%emt 0:00:18]} a5 {[%emt 0:00:26]} 49. Bd3+ {[%emt 0:03:12]} Kf6 {[%emt 0:00:29]} 50. Be2 {[%emt 0:01:06]} Kg6 {[%emt 0:00:20]} 51. f5+ {[%emt 0:01:21]} Kxf5 {[%emt 0:00:13]} 52. Bxh5 {[%emt 0:00:05]} Ke6 {[%emt 0:00:20]} 53. Kg4 {[%emt 0:02:35]} b5 {[%emt 0:01:30]} 54. Kf4 {[%emt 0:03:35]} Bc7+ {[%emt 0:03:38]} 55. Ke4 {[%emt 0:00:29]} f5+ {[%emt 0:00:15]} 56. Kd4 {[%emt 0:00:57]} Bb6+ {[%emt 0:00:10]} 57. Kc3 {[%emt 0:00:47]} Bd8 {[%emt 0:00:13]} 58. Bg6 {[%emt 0:05:33]} Bxh4 {[%emt 0:01:09]} 59. Bxf5+ {[%emt 0:00:16]} Kd6 {[%emt 0:00:05]} 60. Bd7 {[%emt 0:00:39]} Bf6+ {[%emt 0:00:15]} 61. Kc2 {[%emt 0:00:58]} Be5 {[%emt 0:00:33]} 62. Be8 {[%emt 0:00:23]} Kc5 {[%emt 0:00:05]} 63. Kb1 {[%emt 0:00:35]} Bc7 {[%emt 0:00:22]} 64. Kc2 {[%emt 0:00:36]} Kb4 {[%emt 0:00:34]} 65. Kb2 {[%emt 0:00:14]} Bd6 {[%emt 0:00:08]} 66. Ka2 {[%emt 0:00:20]} Be5 {[%emt 0:00:09]} 67. Bd7 {[%emt 0:00:06]} Bd6 {[%emt 0:00:13]} 1/2-1/2

[Event "EYCC Open-U10 2019"]
[Site "Bratislava"]
[Date "2019.08.07"]
[Round "6.7"]
[White "Kononenko, Vladimir"]
[Black "Medhus, Vitus Bondo"]
[Result "1-0"]
[ECO "A57"]
[WhiteElo "1667"]
[BlackElo "1704"]
[Annotator "NA"]
[PlyCount "71"]
[EventDate "2019.08.02"]
[EventType "swiss"]
[EventCountry "SVK"]
[SourceTitle "playchess.com"]
[Source "ChessBase"]
[SourceQuality "1"]
[TimeControl "40/5400+30:1800+30"]

1. d4 {[%emt 0:00:00]} Nf6 {[%emt 0:00:00]} 2. c4 {[%emt 0:00:00]} c5 {[%emt 0:00:00]} 3. d5 {[%emt 0:00:00]} b5 {[%emt 0:00:17]} 4. cxb5 {[%emt 0:00:00]} a6 {[%emt 0:00:26]} 5. b6 {[%emt 0:00:46]} d6 {[%emt 0:00:34]} 6. Nc3 {[%emt 0:01:47]} g6 {[%emt 0:00:54]} 7. e4 {[%emt 0:01:20]} Bg7 {[%emt 0:03:29]} 8. Nf3 {[%emt 0:00:55]} Qxb6 {[%emt 0:03:42]} 9. Be2 {[%emt 0:01:02]} O-O {[%emt 0:01:40]} 10. O-O {[%emt 0:01:03]} Bg4 {[%emt 0:03:27]} 11. Nd2 {[%emt 0:04:16]} Bxe2 {[%emt 0:02:24]} 12. Qxe2 {[%emt 0:00:13]} Nbd7 {[%emt 0:04:05]} 13. f4 {[%emt 0:06:32]} Rfb8 {[%emt 0:07:41]} 14. Nc4 {[%emt 0:04:02]} Qc7 {[%emt 0:05:47]} 15. e5 {[%emt 0:04:17]} Ne8 {[%emt 0:03:48]} 16. e6 {[%emt 0:08:12]} Nf8 {[%emt 0:08:47]} 17. f5 {[%emt 0:07:39]} fxe6 {[%emt 0:06:16]} 18. fxe6 {[%emt 0:02:48]} Nf6 {[%emt 0:02:50]} 19. a4 {[%emt 0:13:36]} Qb7 {[%emt 0:03:09]} 20. Rd1 {[%emt 0:06:17]} h6 {[%emt 0:09:07]} 21. h4 {[%emt 0:02:16]} N8h7 {[%emt 0:05:50]} 22. a5 {[%emt 0:03:54]} Rf8 {[%emt 0:02:47]} 23. Nb6 {[%emt 0:03:01]} Rad8 {[%emt 0:00:19]} 24. Qd3 {[%emt 0:01:05]} g5 {[%emt 0:02:08]} 25. Qg6 {[%emt 0:02:43]} Ng4 {[%emt 0:01:48]} 26. hxg5 {[%emt 0:02:00]} hxg5 {[%emt 0:02:26]} 27. Bd2 {[%emt 0:08:00]} Kh8 {[%emt 0:01:07]} 28. Ne4 {[%emt 0:03:05]} Bd4+ {[%emt 0:02:13]} 29. Kh1 {[%emt 0:00:19]} Nf2+ {[%emt 0:01:00]} 30. Nxf2 {[%emt 0:00:57]} Bxf2 {[%emt 0:01:02]} 31. Bc3+ {[%emt 0:01:17]} Bd4 {[%emt 0:01:48]} 32. Rxd4 {[%emt 0:01:19]} cxd4 {[%emt 0:00:12]} 33. Bxd4+ {[%emt 0:00:01]} Nf6 {[%emt 0:01:33]} 34. Ra3 {[%emt 0:00:14]} g4 {[%emt 0:01:47]} 35. Rg3 {[%emt 0:00:35]} Qc7 {[%emt 0:04:36]} 36. Qh6+ {[%emt 0:00:33]} 1-0

[Event "EYCC Open-U10 2019"]
[Site "Bratislava"]
[Date "2019.08.07"]
[Round "6.8"]
[White "Gal, Andrej"]
[Black "kiladze, Luka"]
[Result "1/2-1/2"]
[ECO "A45"]
[WhiteElo "1705"]
[BlackElo "1683"]
[Annotator "NA"]
[PlyCount "111"]
[EventDate "2019.08.02"]
[EventType "swiss"]
[EventCountry "SVK"]
[SourceTitle "playchess.com"]
[Source "ChessBase"]
[SourceQuality "1"]
[TimeControl "40/5400+30:1800+30"]

1. d4 {[%emt 0:00:00]} Nf6 {[%emt 0:00:00]} 2. Bf4 {[%emt 0:00:00]} g6 {[%emt 0:00:21]} 3. e3 {[%emt 0:00:08]} Bg7 {[%emt 0:00:33]} 4. Nf3 {[%emt 0:01:02]} O-O {[%emt 0:01:39]} 5. h3 {[%emt 0:00:20]} d5 {[%emt 0:01:16]} 6. c4 {[%emt 0:07:32]} c5 {[%emt 0:11:22]} 7. Be2 {[%emt 0:09:51]} Qb6 {[%emt 0:07:53]} 8. Qb3 {[%emt 0:08:05]} cxd4 {[%emt 0:05:19]} 9. exd4 {[%emt 0:03:30]} dxc4 {[%emt 0:04:48]} 10. Qxb6 {[%emt 0:03:24]} axb6 {[%emt 0:02:47]} 11. Bxc4 Nc6 12. Nc3 {[%emt 0:07:29]} Nb4 {[%emt 0:06:09]} 13. O-O {[%emt 0:03:33]} Bf5 {[%emt 0:00:54]} 14. Rfd1 {[%emt 0:07:14]} Rac8 {[%emt 0:01:18]} 15. b3 {[%emt 0:07:16]} Rfd8 {[%emt 0:03:57]} 16. g4 {[%emt 0:08:50]} Be4 {[%emt 0:11:51]} 17. Nxe4 {[%emt 0:06:44]} Nxe4 {[%emt 0:00:16]} 18. a3 {[%emt 0:00:22]} Nc2 {[%emt 0:02:11]} 19. Rac1 {[%emt 0:00:18]} Nxa3 {[%emt 0:07:00]} 20. Bd3 {[%emt 0:02:09]} Nc3 {[%emt 0:06:19]} 21. Rd2 {[%emt 0:05:27]} Nab5 {[%emt 0:06:30]} 22. Rdc2 {[%emt 0:02:01]} Rc6 {[%emt 0:04:16]} 23. Bxb5 {[%emt 0:02:36]} Nxb5 {[%emt 0:00:29]} 24. Rxc6 {[%emt 0:00:18]} bxc6 {[%emt 0:00:10]} 25. Rxc6 {[%emt 0:00:18]} Nxd4 26. Nxd4 {[%emt 0:00:11]} Bxd4 {[%emt 0:01:42]} 27. Rc7 {[%emt 0:01:02]} Bc5 {[%emt 0:01:19]} 28. Rb7 {[%emt 0:01:44]} Rd1+ {[%emt 0:03:00]} 29. Kg2 {[%emt 0:00:55]} Rb1 {[%emt 0:00:18]} 30. Bh6 {[%emt 0:02:17]} f6 {[%emt 0:00:18]} 31. Rb8+ {[%emt 0:00:34]} Kf7 {[%emt 0:00:18]} 32. Rh8 {[%emt 0:01:37]} g5 33. h4 {[%emt 0:02:38]} gxh4 {[%emt 0:03:15]} 34. Rxh7+ {[%emt 0:01:43]} Kg6 {[%emt 0:00:13]} 35. Rh8 {[%emt 0:00:07]} Rb2 {[%emt 0:00:36]} 36. b4 {[%emt 0:01:15]} Bxb4 {[%emt 0:01:41]} 37. Be3 {[%emt 0:00:16]} Bc5 {[%emt 0:01:42]} 38. Bxc5 {[%emt 0:00:40]} bxc5 {[%emt 0:00:14]} 39. Rxh4 {[%emt 0:00:14]} Kg5 {[%emt 0:00:16]} 40. Rh5+ {[%emt 0:00:00]} Kxg4 {[%emt 0:00:00]} 41. Rxc5 {[%emt 0:00:26]} f5 {[%emt 0:01:38]} 42. Re5 {[%emt 0:06:53]} Rb7 {[%emt 0:00:27]} 43. Ra5 {[%emt 0:00:45]} Rb4 {[%emt 0:00:41]} 44. Re5 {[%emt 0:00:46]} Rb7 {[%emt 0:00:02]} 45. Ra5 {[%emt 0:00:18]} Kg5 {[%emt 0:00:10]} 46. Ra8 {[%emt 0:01:19]} e5 {[%emt 0:00:26]} 47. Rg8+ {[%emt 0:01:20]} Kf4 {[%emt 0:00:13]} 48. Ra8 {[%emt 0:01:12]} e4 {[%emt 0:00:52]} 49. Ra4 {[%emt 0:01:45]} Rb2 {[%emt 0:01:18]} 50. Rc4 {[%emt 0:03:34]} Kg5 {[%emt 0:01:46]} 51. Kf1 {[%emt 0:01:52]} Kf6 {[%emt 0:01:03]} 52. f3 {[%emt 0:02:25]} exf3 {[%emt 0:00:49]} 53. Rf4 {[%emt 0:00:11]} Rb1+ {[%emt 0:00:51]} 54. Kf2 {[%emt 0:00:15]} Ke5 {[%emt 0:00:12]} 55. Rxf3 {[%emt 0:00:35]} f4 {[%emt 0:00:08]} 56. Ra3 {[%emt 0:00:32]} 1/2-1/2

[Event "EYCC Open-U10 2019"]
[Site "Bratislava"]
[Date "2019.08.07"]
[Round "6.10"]
[White "Csernyik, Mark"]
[Black "Royal, Shreyas"]
[Result "0-1"]
[ECO "C54"]
[WhiteElo "1648"]
[BlackElo "1996"]
[Annotator "NA"]
[PlyCount "102"]
[EventDate "2019.08.02"]
[EventType "swiss"]
[EventCountry "SVK"]
[SourceTitle "playchess.com"]
[Source "ChessBase"]
[SourceQuality "1"]
[TimeControl "40/5400+30:1800+30"]

1. e4 e5 2. Nf3 Nc6 3. d4 exd4 4. c3 {[%emt 0:00:56]} Bc5 {[%emt 0:08:26]} 5. Bc4 {[%emt 0:03:24]} Nf6 {[%emt 0:00:13]} 6. e5 {[%emt 0:00:24]} d5 {[%emt 0:01:05]} 7. Bb5 {[%emt 0:01:44]} Ne4 {[%emt 0:02:52]} 8. cxd4 {[%emt 0:01:22]} Bb6 {[%emt 0:01:33]} 9. h3 {[%emt 0:05:10]} O-O {[%emt 0:02:04]} 10. O-O {[%emt 0:00:59]} f6 {[%emt 0:01:00]} 11. Bxc6 {[%emt 0:06:54]} bxc6 {[%emt 0:00:48]} 12. Be3 {[%emt 0:00:50]} f5 {[%emt 0:03:45]} 13. Nc3 {[%emt 0:03:55]} f4 {[%emt 0:03:57]} 14. Bd2 {[%emt 0:02:12]} g5 {[%emt 0:00:14]} 15. Qe2 {[%emt 0:04:39]} Bf5 {[%emt 0:01:39]} 16. Nh2 {[%emt 0:04:29]} Bxd4 {[%emt 0:02:06]} 17. Nxe4 {[%emt 0:02:27]} dxe4 {[%emt 0:01:39]} 18. Bb4 {[%emt 0:02:07]} Re8 {[%emt 0:03:34]} 19. Rad1 {[%emt 0:01:59]} Qd5 {[%emt 0:02:00]} 20. Qh5 {[%emt 0:02:32]} Qxe5 {[%emt 0:01:19]} 21. Qxg5+ {[%emt 0:00:52]} Bg6 {[%emt 0:00:10]} 22. Qxe5 {[%emt 0:00:37]} Bxe5 {[%emt 0:00:18]} 23. b3 {[%emt 0:04:42]} e3 {[%emt 0:03:21]} 24. fxe3 {[%emt 0:03:35]} fxe3 {[%emt 0:00:22]} 25. Rde1 {[%emt 0:14:13]} Bg3 {[%emt 0:03:57]} 26. Ng4 {[%emt 0:01:25]} Bxe1 {[%emt 0:02:08]} 27. Bxe1 {[%emt 0:03:58]} Rf8 {[%emt 0:08:12]} 28. Nf6+ {[%emt 0:02:10]} Kg7 {[%emt 0:00:56]} 29. Bc3 {[%emt 0:00:13]} Kh6 {[%emt 0:00:07]} 30. h4 {[%emt 0:12:41]} e2 {[%emt 0:06:16]} 31. Rf4 {[%emt 0:07:01]} Rae8 {[%emt 0:16:11]} 32. Kf2 {[%emt 0:00:30]} e1=Q+ {[%emt 0:02:57]} 33. Bxe1 {[%emt 0:00:17]} Rxe1 {[%emt 0:00:14]} 34. Ng4+ {[%emt 0:05:39]} Kg7 {[%emt 0:00:16]} 35. Rxf8 {[%emt 0:00:07]} Re4 {[%emt 0:00:26]} 36. Rc8 {[%emt 0:00:33]} Rxg4 {[%emt 0:00:07]} 37. Rxc7+ {[%emt 0:00:12]} Bf7 {[%emt 0:00:49]} 38. g3 {[%emt 0:00:20]} a5 {[%emt 0:00:39]} 39. Rxc6 {[%emt 0:00:06]} Rg6 {[%emt 0:01:15]} 40. Rc5 {[%emt 0:00:00]} Ra6 {[%emt 0:00:00]} 41. Rg5+ {[%emt 0:02:06]} Kf6 {[%emt 0:01:18]} 42. Rg4 {[%emt 0:00:27]} a4 {[%emt 0:01:22]} 43. Rxa4 {[%emt 0:00:14]} Rxa4 {[%emt 0:00:05]} 44. bxa4 {[%emt 0:00:09]} Kf5 {[%emt 0:00:27]} 45. a3 {[%emt 0:00:35]} Bd5 {[%emt 0:00:53]} 46. a5 {[%emt 0:00:50]} Kg4 {[%emt 0:01:13]} 47. Ke3 {[%emt 0:00:52]} h5 {[%emt 0:00:57]} 48. Kd4 {[%emt 0:00:09]} Bg2 {[%emt 0:00:10]} 49. a6 {[%emt 0:00:31]} Kxg3 {[%emt 0:00:17]} 50. Kc5 {[%emt 0:00:16]} Kxh4 {[%emt 0:00:24]} 51. Kb6 {[%emt 0:00:26]} Kg3 {[%emt 0:00:17]} 0-1